Workbook

Sheet с 7 до 11 лет
A2: День: среда
A3: Неделя: 2 | E3: Возраст: с 7 до 11 лет
A4: № | B4: Наименование блюда | E4: масса | F4: Пищевые вещества (г) | I4: энерге- | J4: Витамины | M4: Минеральные вещества (мг)
A5: рец. | E5: порций | F5: Б | G5: Ж | H5: У | I5: тическая | J5: В1 | K5: С | L5: А | M5: Са | N5: Р | O5: Мg | P5: Fe
I6: ценность
B7: Завтрак
A8: 98 | B8: Котлеты из говядины | E8: 130 | F8: 13.09 | G8: 18.2 | H8: 13.4 | I8: 259.1 | J8: 0.05 | K8: 0.3 | L8: 0 | M8: 26.6 | N8: 121.66 | O8: 17.48 | P8: 0.46
A9: 138 | B9: Пюре картофельное | E9: 150 | F9: 3 | G9: 4.6 | H9: 20.1 | I9: 136.2 | J9: 0.12 | K9: 10.38 | L9: 28.8 | M9: 35.6 | N9: 98.22 | O9: 33.03 | P9: 1.2
A10: 289 | B10: Какао с молоком | E10: 200 | F10: 3.3 | G10: 3.1 | H10: 13.6 | I10: 94 | J10: 0.03 | K10: 0.52 | L10: 15.96 | M10: 110.37 | N10: 109.42 | O10: 26.97 | P10: 0.88
A11: СГР | B11: Хлеб пшеничный для детского питания | E11: 50 | F11: 4 | G11: 0 | H11: 7.81 | I11: 39.06 | J11: 0.09 | K11: 0 | L11: 0 | M11: 10.2 | N11: 35.8 | O11: 14.2 | P11: 1
B12: Итого за завтрак | F12: =SUM(F8:F11) -> 23.39 | G12: =SUM(G8:G11) -> 25.9 | H12: =SUM(H8:H11) -> 54.91 | I12: =SUM(I8:I11) -> 528.36 | J12: =SUM(J8:J11) -> 0.29 | K12: =SUM(K8:K11) -> 11.2 | L12: =SUM(L8:L11) -> 44.76 | M12: =SUM(M8:M11) -> 182.77 | N12: =SUM(N8:N11) -> 365.1 | O12: =SUM(O8:O11) -> 91.68 | P12: =SUM(P8:P11) -> 3.54
A13: цена завтрака | F13: 78.52
B14: Обед
A15: 40 | B15: Салат Степной | E15: 80 | F15: 1.28 | G15: 4.17 | H15: 7.01 | I15: 71.34 | J15: 0.05 | K15: 2.29 | L15: 2.4 | M15: 14.31 | N15: 12.3 | O15: 14.53 | P15: 0.45
A16: 65 | B16: Суп картофельный с крупой на мясном бульоне | E16: 210 | F16: 1.68 | G16: 4.48 | H16: 9.92 | I16: 30.4 | J16: 0.05 | K16: 5.6 | L16: 3.24 | M16: 12.39 | N16: 57.52 | O16: 19.2 | P16: 0.73
A17: 596 | B17: Рагу овощное с мясом | E17: 200 | F17: 12.4 | G17: 13.8 | H17: 10.5 | I17: 217 | J17: 0.09 | K17: 10.52 | L17: 8.9 | M17: 34.6 | N17: 27 | O17: 41.35 | P17: 2.54
A18: 294 | B18: Компот из сухофруктов | E18: 200 | F18: 0.12 | G18: 0 | H18: 19.4 | I18: 79.6 | J18: 0.07 | K18: 0.29 | L18: 0 | M18: 14.32 | N18: 0 | O18: 8.5 | P18: 0.92
A19: СГР | B19: Хлеб пшеничный | E19: 25 | F19: 2 | G19: 0 | H19: 10 | I19: 50 | J19: 0.04 | K19: 0 | L19: 0 | M19: 5.75 | N19: 21.75 | O19: 8.25 | P19: 0.5
A20: СГР | B20: Хлеб ржано-пшеничный | E20: 25 | F20: 2 | G20: 0 | H20: 10 | I20: 50 | J20: 0.04 | K20: 0 | L20: 0 | M20: 7.25 | N20: 32.5 | O20: 10.5 | P20: 0.9
B21: Итого за обед | F21: =SUM(F15:F20) -> 19.48 | G21: 22.45 | H21: 66.83 | I21: 498.34 | J21: 0.34 | K21: 18.7 | L21: 14.54 | M21: 88.62 | N21: 151.07 | O21: 102.33 | P21: 6.04
A22: цена обеда | F22: 68.3
B23: Итого за день | F23: 40.57 | G23: 47.09 | H23: 125.36 | I23: 1033 | J23: 0.675 | K23: 105.48 | L23: 52.26 | M23: 317.57 | N23: 721.83 | O23: 221.52 | P23: 9.96

Sheet Лист3
